bitfinex-derivatives/quotes_ETHF0:USTF0_20250331
["timestamp","ask_amount","ask_price","bid_price","bid_amount"]
[1743405778815,2.54393,1798.5,1798.4,42.187]
[1743405779103,1.11213,1798.7,1798.5,1.1122]
[1743405779308,1.11201,1798.9,1798.6,1.5087]
[1743405779506,1.11211,1798.7,1798.6,1.5087]
[1743405779705,1.3842,1798.8,1798.6,1.5087]
[1743405779915,2.49627,1798.8,1798.6,2.62084]
[1743405780111,1.3842,1798.8,1798.7,41.91211]
[1743405780332,3.2078,1799.1,1798.8,2.78004]
[1743405780609,17.58376401,1799.4,1799.3,1.11174]
[1743405780816,1.11159,1799.6,1799.4,1.11165]
[1743405781016,17.58376401,1799.7,1799.5,3.2078]
[1743405781313,17.58376401,1799.7,1799.6,43.42025]
[1743405781709,17.58376401,1799.7,1799.6,42.3087]
[1743405781910,18.69525401,1799.7,1799.6,42.3087]
[1743405782418,17.58376401,1799.7,1799.6,42.3087]
[1743405782610,17.58376401,1799.7,1799.6,43.42025]
[1743405782812,18.69525401,1799.7,1799.6,42.3087]
[1743405783120,18.95166401,1799.7,1799.6,42.3087]
[1743405783320,20.06315401,1799.7,1799.6,42.3087]
[1743405783515,2.47939,1799.7,1799.6,42.3087]
[1743405784317,5.68719,1799.7,1799.6,42.3087]
[1743405784516,1.11148,1799.8,1799.6,40.8]
[1743405784714,1.11148,1799.8,1799.7,1.5069]
[1743405785118,3.2078,1799.9,1799.7,1.5069]
[1743405785316,3.2078,1799.9,1799.8,40.8]
[1743405785815,3.2078,1799.9,1799.8,41.91143]
[1743405786211,4.31917,1799.9,1799.8,40.8]
[1743405787619,3.2078,1799.9,1799.8,40.8]
[1743405788118,4.6558,1799.9,1799.8,40.8]
[1743405788320,4.6558,1799.9,1799.8,41.91143]
[1743405788611,4.6558,1799.9,1799.8,40.8]
[1743405788822,5.76717,1799.9,1799.8,40.8]
[1743405789822,4.6558,1799.9,1799.8,41.91143]
[1743405790018,1.448,1799.9,1799.8,40.8]
[1743405790220,2.55937,1799.9,1799.8,40.8]
[1743405790422,1.11137,1799.9,1799.8,40.8]
[1743405790618,3.2078,1800.0,1799.8,40.8]
[1743405790813,1.11137,1799.9,1799.7,1.5069]
[1743405791214,2.54927,1799.9,1799.8,40.8]
[1743405793014,6.02077,1799.9,1799.8,40.8]
[1743405793324,3.52077,1799.9,1799.8,40.8]
[1743405794125,2.57045,1800.1,1799.8,40.8]
[1743405794425,1.11134,1800.0,1799.8,43.38248]
[1743405794630,1.11134,1800.0,1799.9,1.4711]
[1743405795428,4.31914,1800.0,1799.9,40.8]
[1743405800227,1.11157,1799.6,1799.4,8.61177003]
[1743405800431,1.11147,1799.8,1799.6,1.11152]
[1743405800725,1.11147,1799.8,1799.4,10.27934003]
[1743405800726,1.11158,1799.6,1799.4,3.21615003]
[1743405800926,1.11154,1799.7,1799.5,2.50399]
[1743405801116,1.11154,1799.7,1799.6,40.8]
[1743405801314,1.11154,1799.7,1799.6,41.91155]
[1743405801920,1.11154,1799.7,1799.6,40.8]
[1743405802929,2.51694,1799.7,1799.6,40.8]
[1743405804928,4.1825,1799.8,1799.6,41.91155]
[1743405805225,1.11143,1799.8,1799.7,1.4918]
[1743405805826,1.11143,1799.8,1799.7,42.2918]
[1743405807122,1.3937,1799.9,1799.7,42.2918]
[1743405807329,1.11133,1800.0,1799.7,42.2918]
[1743405807627,1.11137,1799.9,1799.7,43.40324]
[1743405807831,1.11137,1799.9,1799.7,43.40325]
[1743405808129,1.11137,1799.9,1799.8,1.11143]
[1743405808827,1.11141,1799.9,1799.8,1.11141]
[1743405809430,1.11141,1799.9,1799.8,40.8]
[1743405809633,2.61651,1799.9,1799.8,40.8]
[1743405813028,3.2078,1800.0,1799.8,40.8]
[1743405813232,1.11135,1800.0,1799.9,2.47825]
[1743405813629,1.11135,1800.0,1799.9,1.3669]
[1743405813932,1.11135,1800.0,1799.9,42.1669]
[1743405814733,2.47815,1800.0,1799.9,43.27827]
[1743405815438,2.47815,1800.0,1799.9,42.1669]
[1743405817528,5.68595,1800.0,1799.9,40.8]
[1743405818235,8.18595,1800.0,1799.9,40.8]
[1743405818428,1.11161,1799.5,1799.4,0.00835003]
[1743405818733,8.50941,1799.5,1799.4,0.00835003]
[1743405819434,9.93701,1799.5,1799.4,40.80835003]
[1743405819834,5.74701,1799.5,1799.4,40.80835003]
[1743405820039,5.98638,1799.8,1799.4,40.80835003]
[1743405820335,1.11161,1799.5,1799.4,40.80835003]
[1743405822828,2.58841,1799.5,1799.4,40.80835003]
[1743405824634,4.62151,1799.5,1799.4,40.80835003]
[1743405826341,1.11161,1799.5,1799.4,40.80835003]
[1743405826739,2.54041,1799.5,1799.4,40.80835003]
[1743405830545,6.69641,1799.5,1799.4,40.80835003]
[1743405831139,1.11199,1798.9,1798.8,5.2133]
[1743405831346,1.11207,1798.8,1798.6,5.26914]
[1743405831642,4.15884,1799.0,1798.6,4.157]
[1743405831847,1.11209,1798.8,1798.6,5.26916]
[1743405832042,1.11217,1798.6,1798.5,1.0143]
[1743405832347,1.11217,1798.6,1798.5,0.00835003]
[1743405832540,1.11217,1798.6,1798.5,40.80835003]
[1743405832742,4.31996,1798.7,1798.5,40.80835003]
[1743405832942,1.11217,1798.6,1798.5,40.80835003]
[1743405833445,1.11207,1798.8,1798.6,1.11214]
[1743405833646,0.00835003,1798.9,1798.6,8.3924]
[1743405833840,0.00835003,1798.9,1798.8,4.31985]
[1743405834043,1.11184,1799.2,1799.0,1.11192]
[1743405834241,1.11177,1799.3,1799.1,1.11182]
[1743405834447,1.11177,1799.3,1799.2,40.8]
[1743405834848,4.31957,1799.3,1799.2,40.8]
[1743405836640,5.71587,1799.3,1799.2,40.8]
[1743405839652,4.6041,1799.3,1798.8,1.4295]
[1743405839961,1.11211,1798.7,1798.6,0.9786]
[1743405840254,5.98763,1799.0,1798.6,0.9786]
[1743405840554,5.98763,1799.0,1798.6,2.09077]
[1743405840555,1.1121,1798.8,1798.6,2.09077]
[1743405840754,1.1121,1798.8,1798.7,40.8]
[1743405842353,4.3199,1798.8,1798.7,40.8]
[1743405842557,1.11217,1798.6,1798.5,0.00835003]
[1743405842857,2.78059,1798.5,1797.9,1.9987]
[1743405843054,1.11254,1798.0,1797.9,1.0204]
[1743405843359,9.36292,1798.5,1798.0,1.11251]
[1743405843558,1.11248,1798.1,1797.9,2.13295]
[1743405843947,0.00835003,1798.2,1797.9,1.0204]
[1743405844155,1.12083003,1798.2,1798.1,40.8]
[1743405845955,1.12083003,1798.2,1798.1,42.3183]
[1743405846352,0.00835003,1798.2,1798.1,43.43078]
[1743405846555,1.12077003,1798.2,1798.1,42.3183]
[1743405847958,0.00835003,1798.2,1798.1,50.08878]
[1743405848161,5.55975,1799.0,1798.3,2.78078]
[1743405848162,4.622,1798.9,1798.3,2.78078]
[1743405848459,1.11217,1798.6,1798.5,1.11219]
[1743405848658,1.11217,1798.6,1798.5,2.51319]
[1743405848962,1.11211,1798.7,1798.6,1.11214]
[1743405849151,3.2078,1798.9,1798.5,1.401]
[1743405849152,3.2078,1798.9,1798.5,4.18157]
[1743405849355,1.11195,1799.0,1798.6,5.98824]
[1743405849558,1.11193,1799.0,1798.9,40.8]
[1743405850061,1.11193,1799.0,1798.9,41.91199]
[1743405850253,1.11193,1799.0,1798.9,40.8]
[1743405850453,1.11193,1799.0,1798.9,42.201]
[1743405850655,3.2078,1799.1,1798.9,42.201]
[1743405850856,4.31971,1799.1,1799.0,1.11192]
[1743405851159,1.11191,1799.1,1799.0,2.4189]
[1743405851358,1.11191,1799.1,1799.0,1.401]
[1743405851558,1.11191,1799.1,1799.0,42.201]
[1743405851952,2.62311,1799.1,1799.0,42.201]
[1743405853460,3.2078,1799.4,1799.0,42.201]
[1743405853653,1.11182,1799.2,1799.0,42.201]
[1743405853967,1.11182,1799.2,1799.0,47.46392]
[1743405854158,5.83072,1799.4,1799.2,1.1118]
[1743405854362,1.11168,1799.4,1799.3,1.3829]
[1743405854762,5.80868,1799.4,1799.3,1.3829]
[1743405855060,5.80868,1799.4,1799.3,42.1829]
[1743405856660,5.80868,1799.4,1799.3,40.8]
[1743405858464,5.80868,1799.4,1799.3,41.91174]
[1743405858465,4.697,1799.4,1799.3,41.91174]
[1743405858659,58.83071,1799.8,1799.7,1.11149]
[1743405858660,3.2078,1799.8,1799.7,1.11149]
[1743405859264,41.81799267,1800.0,1799.8,1.11142]
[1743405859265,41.81798267,1800.0,1799.8,1.11142]
[1743405859455,3.2078,1799.9,1799.8,2.49272]
[1743405859863,3.2078,1799.9,1799.8,1.3813]
[1743405860164,1.11137,1799.9,1799.8,1.3813]
[1743405860358,5.74537,1799.9,1799.8,42.1813]
[1743405860760,5.74537,1799.9,1799.8,40.8]
[1743405860956,8.24537,1799.9,1799.8,40.8]
[1743405864161,1.11143,1799.8,1799.7,0.00835003]
[1743405864368,1.1118,1799.2,1799.1,3.2078]
[1743405864567,1.11186,1799.1,1799.0,1.4415]
[1743405864965,3.2078,1799.2,1799.0,1.4415]
[1743405865266,1.11186,1799.1,1799.0,1.4415]
[1743405865469,1.11184,1799.2,1799.0,1.4415]
[1743405865661,1.11184,1799.2,1799.1,40.8]
[1743405868563,1.1118,1799.2,1799.1,40.8]
[1743405873968,2.2006,1799.2,1799.1,40.8]
[1743405874170,3.2111,1799.2,1799.1,40.8]
[1743405875678,2.60572003,1799.3,1799.1,41.91185]
[1743405875880,2.60572003,1799.3,1799.2,1.5006]
[1743405876373,2.60572003,1799.3,1799.2,42.3006]
[1743405876683,0.00835003,1799.3,1799.2,43.4124]
[1743405876873,0.00835003,1799.3,1799.2,44.4078]
[1743405877273,1.11144,1799.8,1799.2,49.0038]
[1743405877575,3.2078,1800.0,1799.9,1.11137]
[1743405877773,2.77768,1800.4,1799.9,4.086]
[1743405877774,7.39982,1800.3,1799.9,4.086]
[1743405877974,1.1113,1800.1,1800.0,1.5006]
[1743405878177,1.1113,1800.1,1800.0,42.3006]
[1743405879179,2.5295,1800.1,1800.0,42.3006]
[1743405879679,0.9891,1800.2,1800.0,42.3006]
[1743405879680,1.11122,1800.2,1800.0,42.3006]
[1743405879887,3.2078,1800.3,1800.0,46.3796]
[1743405880091,4.626,1800.3,1800.0,46.3796]
[1743405880381,1.11124,1800.1,1800.0,42.3006]
[1743405882687,1.11122,1800.2,1800.0,42.3006]
[1743405883289,1.11122,1800.2,1800.0,2.6119]
[1743405883592,1.11124,1800.1,1800.0,1.5006]
[1743405884292,1.11124,1800.1,1800.0,42.3006]
[1743405886282,1.11124,1800.1,1800.0,43.41191]
[1743405886486,1.11124,1800.1,1800.0,42.3006]
[1743405887880,1.11123,1800.2,1800.0,43.41191]
[1743405888283,1.11124,1800.1,1800.0,43.41191]
[1743405888483,1.11124,1800.1,1800.0,42.3006]
[1743405889894,1.5156,1800.2,1800.0,42.3006]
[1743405890096,1.11124,1800.1,1800.0,1.5006]
[1743405890594,1.11124,1800.1,1800.0,42.3006]
[1743405891599,1.11124,1800.1,1800.0,43.41191]
[1743405891991,1.11124,1800.1,1800.0,42.3006]
[1743405892391,1.11124,1800.1,1800.0,43.41191]
[1743405892585,1.11124,1800.1,1800.0,42.3006]
[1743405893798,4.31904,1800.1,1800.0,40.8]
[1743405894104,6.30494,1800.1,1800.0,40.8]
[1743405895497,10.31994,1800.1,1800.0,40.8]
[1743405895903,1.11131,1800.0,1799.9,0.00835003]
[1743405896103,2.59901,1800.0,1799.9,0.00835003]
[1743405896905,2.59901,1800.0,1799.9,40.80835003]
[1743405897704,3.9877,1800.0,1799.2,4.2876]
[1743405897896,1.11174,1799.3,1799.1,5.12083]
[1743405898504,3.81177,1799.5,1799.0,4.31967]
[1743405898505,1.1118,1799.2,1799.0,4.31967]
[1743405898700,5.98707,1799.4,1799.0,3.2078]
[1743405898906,1.11181,1799.2,1799.0,4.31968]
[1743405899101,1.11181,1799.2,1799.1,1.4818]
[1743405899399,1.11181,1799.2,1799.1,42.2818]
[1743405899798,2.55284003,1799.3,1799.1,43.39366]
[1743405900006,2.55284003,1799.3,1799.2,1.4818]
[1743405900507,0.00835003,1799.3,1799.2,8.3014]
[1743405900697,0.00835003,1799.3,1799.2,53.1104]
[1743405901005,1.11155,1799.6,1799.5,1.11156]
[1743405901203,1.11137,1799.9,1799.6,2.77889]
[1743405901401,5.98595,1800.1,1799.6,5.7014]
[1743405901402,1.11143,1799.8,1799.6,5.7014]
[1743405901706,1.11143,1799.8,1799.7,42.1821]
[1743405902312,2.60133,1799.8,1799.7,42.1821]
[1743405904312,3.2078,1800.2,1800.0,1.11128]
[1743405904609,4.31898,1800.2,1800.1,1.5031]
[1743405904802,5.76748,1800.2,1800.1,1.5031]
[1743405905108,1.11131,1800.0,1799.9,0.00835003]
[1743405905309,1.11131,1800.0,1799.9,2.62282003]
[1743405905500,1.11131,1800.0,1799.9,1.51145003]
[1743405906703,4.31911,1800.0,1799.9,1.51145003]
[1743405907006,4.31911,1800.0,1799.9,42.31145003]
[1743405907215,1.11131,1800.0,1799.9,42.31145003]
[1743405907513,2.52709,1800.1,1799.9,42.31145003]
[1743405907699,1.0467,1800.4,1800.0,1.4973]
[1743405907905,2.52684,1800.5,1800.4,1.11106]
[1743405908202,1.4158,1800.5,1800.4,1.11106]
[1743405908512,23.60263746,1800.6,1800.5,1.111]
[1743405909107,23.60263746,1800.6,1800.5,41.911]
[1743405909308,23.60263746,1800.6,1800.5,40.8]
[1743405909808,4.31875,1800.6,1800.5,40.8]
[1743405910013,5.35925,1800.6,1800.5,40.8]
[1743405910715,3.2078,1800.6,1800.5,42.1956]
[1743405910913,3.2078,1800.6,1800.5,43.3066]
[1743405911608,4.7242,1800.6,1800.5,43.3066]
[1743405912513,5.83514,1800.6,1800.5,42.1956]
[1743405913608,24.54727592,1801.0,1800.7,1.11087]
[1743405913609,24.97832592,1801.0,1800.7,1.11087]
[1743405913808,24.97832592,1801.0,1800.8,2.59181]
[1743405913809,1.3788,1800.9,1800.8,2.59181]
[1743405914407,1.3788,1800.9,1800.8,43.39181]
[1743405914806,2.48955,1800.9,1800.8,43.39181]
[1743405915007,2.48955,1800.9,1800.8,42.281]
[1743405915208,2.48955,1800.9,1800.8,43.39181]
[1743405915407,2.48955,1800.9,1800.8,42.281]
[1743405915612,2.48955,1800.9,1800.8,40.8]
[1743405918214,8.98155,1800.9,1800.8,40.8]
[1743405918813,1.11106,1800.4,1800.3,1.414]
[1743405919012,2.77781,1800.3,1800.0,1.11129]
[1743405919216,1.11124,1800.2,1800.0,2.52529]
[1743405919412,2.49214,1800.2,1800.1,1.414]
[1743405919809,2.49214,1800.2,1800.1,42.214]
[1743405922217,5.69994,1800.2,1800.1,40.8]
[1743405926517,1.11109,1800.4,1800.2,1.11117]
[1743405926711,3.2078,1800.9,1800.3,11.42458]
[1743405926912,3.2078,1800.9,1800.5,3.2078]
[1743405927212,3.2078,1800.9,1800.8,40.8]
[1743405927518,4.31855,1800.9,1800.8,40.8]
[1743405927718,4.31855,1800.9,1800.8,42.2615]
[1743405928106,4.31855,1800.9,1800.8,40.8]
[1743405934719,6.81855,1800.9,1800.8,38.02165112]
[1743405934926,1.11117,1800.3,1800.1,1.0184]
[1743405935226,1.11118,1800.2,1800.1,1.0184]
[1743405935819,4.31898,1800.2,1800.1,40.8]
[1743405936222,5.74888,1800.2,1800.1,40.8]
[1743405944923,3.2078,1800.2,1800.1,40.8]
[1743405945227,12.74878746,1800.4,1800.3,1.11112]
[1743405945529,10.05078746,1800.4,1800.3,1.11112]
[1743405945728,10.05078746,1800.4,1800.3,3.61112]
[1743405945925,8.04818746,1800.4,1800.3,44.41112]
[1743405946828,9.15924746,1800.4,1800.3,44.41112]
[1743405947231,9.15924746,1800.4,1800.3,43.3]
[1743405947530,9.15924746,1800.4,1800.3,40.8]
[1743405947920,1.11106,1800.4,1800.3,40.8]
[1743405949838,4.31886,1800.4,1800.3,40.8]
[1743405952639,8.23986,1800.4,1800.3,40.8]
[1743405955531,7.1288,1800.4,1799.9,0.00835003]
[1743405955729,4.31911,1800.0,1799.9,0.00835003]
[1743405956031,5.55717,1799.8,1799.1,0.0551]
[1743405956226,3.2078,1799.4,1799.0,1.1119]
[1743405956431,1.1118,1799.2,1799.0,1.1119]
[1743405956633,1.3932,1799.1,1799.0,1.1119]
[1743405956827,1.3932,1799.1,1798.8,31.5761]
[1743405957030,1.3932,1799.1,1799.0,40.8]
[1743405957233,2.50506,1799.1,1799.0,40.8]
[1743405960837,1.11192,1799.0,1798.9,0.00835003]
[1743405961137,5.77052,1799.0,1798.9,0.00835003]
[1743405961841,5.77052,1799.0,1798.9,40.80835003]
[1743405963840,9.67452,1799.0,1798.9,40.80835003]
[1743405964047,1.11236,1798.3,1798.2,3.2078]
[1743405965044,1.11236,1798.3,1798.2,44.0078]
[1743405968357,1.11236,1798.3,1798.2,40.8]
[1743405968550,1.11236,1798.3,1798.1,0.00835003]
[1743405968551,1.11242,1798.2,1798.1,0.00835003]
[1743405968757,5.76482,1798.2,1798.1,0.00835003]
[1743405969453,6.20062926,1798.2,1798.1,0.00835003]
[1743405969650,6.20062926,1798.2,1798.1,40.80835003]
[1743405969847,7.58820926,1798.2,1797.4,3.2078]
[1743405970051,1.1129,1797.5,1797.4,3.2078]
[1743405970860,2.78199,1797.6,1797.4,40.8]
[1743405971158,2.52615,1797.5,1797.4,40.8]
[1743405973662,6.43815,1797.5,1797.4,40.8]
[1743405974863,8.93815,1797.5,1797.4,40.8]
[1743405975759,1.11291,1797.4,1797.3,0.00835003]
[1743405975960,5.56538,1797.2,1796.7,3.2078]
[1743405976158,1.11325,1796.9,1796.7,3.2078]
[1743405976557,1.11329,1796.8,1796.7,3.2078]
[1743405976761,1.11329,1796.8,1796.7,44.0078]
[1743405976954,1.11328,1796.9,1796.7,44.0078]
[1743405977260,1.11326,1796.9,1796.7,45.12114]
[1743405977662,1.11326,1796.9,1796.8,3.2078]
[1743405978252,1.11326,1796.9,1796.8,44.0078]
[1743405979962,1.11326,1796.9,1796.8,40.8]
[1743405980365,5.01426,1796.9,1796.8,40.8]
[1743405980565,6.51686,1796.9,1796.8,40.8]
[1743405981865,6.95990952,1796.9,1796.8,40.8]
[1743405982372,1.11335,1796.7,1796.6,0.00835003]
[1743405982668,1.11366,1796.2,1796.1,3.2078]
[1743405982964,1.11366,1796.2,1795.5,2.7852]
[1743405982965,2.78415,1796.2,1795.6,4.429]
[1743405983172,5.22973,1796.1,1795.6,4.44088]
[1743405983362,5.22973,1796.1,1795.7,0.0119]
[1743405983363,1.11391,1795.8,1795.7,0.0119]
[1743405983760,1.11397,1795.7,1795.6,3.2078]
[1743405983960,2.52447,1795.7,1795.6,3.21615003]
[1743405984371,2.52447,1795.7,1795.6,44.02805003]
[1743405986170,1.4105,1795.7,1795.6,45.14208003]
[1743405986474,1.11397,1795.7,1795.6,45.14206003]
[1743405986675,1.40555003,1795.9,1795.6,44.02805003]
[1743405986866,3.81925,1796.1,1795.7,1.12493]
[1743405987069,1.11392,1795.8,1795.7,0.011]
[1743405987775,1.11392,1795.8,1795.7,68.411]
[1743405988573,1.11392,1795.8,1795.7,40.811]
[1743405988777,1.11392,1795.8,1795.7,40.8]
[1743405990377,2.49042,1795.8,1795.7,40.8]
[1743405990679,0.00835003,1795.9,1795.8,1.11391]
[1743405990879,0.00835003,1795.9,1795.8,4.32171]
[1743405991270,0.00835003,1795.9,1795.8,45.12171]
[1743405991472,1.11362,1796.3,1796.1,1.11367]
[1743405991778,1.5014,1796.2,1796.1,1.11367]
[1743405991966,2.6151,1796.2,1796.0,1.11376]
[1743405992169,1.5014,1796.2,1796.1,1.11372]
[1743405992379,2.61506,1796.2,1796.1,40.8]
[1743405992674,1.5014,1796.2,1796.1,40.8]
[1743405992878,2.61506,1796.2,1796.1,41.91372]
[1743405993078,2.61506,1796.2,1796.1,40.8]
[1743405993978,2.61506,1796.2,1796.1,41.91372]
[1743405994276,1.12197003,1796.3,1796.2,1.11366]
[1743405994777,0.00835003,1796.3,1796.2,1.11366]
[1743405994974,0.00835003,1796.3,1796.2,41.91366]
[1743405997673,0.00835003,1796.3,1796.2,45.12146]
[1743405999781,1.0404,1796.8,1796.6,1.11341]
[1743405999982,5.99118,1796.7,1796.3,3.888]
[1743406000177,1.11353,1796.4,1796.3,5.00159]
[1743406000387,1.11353,1796.4,1796.3,44.688]
[1743406000584,1.11353,1796.4,1796.3,41.9136]
[1743406001583,1.11353,1796.4,1796.3,40.8]
[1743406002481,2.19923,1796.4,1796.3,40.8]
[1743406002887,3.21603,1796.4,1796.3,40.8]
[1743406003288,2.1025,1796.4,1796.3,40.8]
[1743406003686,3.21603,1796.4,1796.3,40.8]
[1743406005385,1.0857,1796.4,1796.3,41.9136]
[1743406005794,2.19923,1796.4,1796.3,40.8]
[1743406007083,2.19923,1796.4,1796.3,41.9136]
[1743406007284,2.19923,1796.4,1796.3,40.8]
[1743406007884,2.19923,1796.4,1796.3,41.9136]
[1743406008489,2.19923,1796.4,1796.3,40.8]
[1743406009493,3.69493,1796.4,1796.3,40.8]
[1743406009687,3.69493,1796.4,1796.3,41.9136]
[1743406010699,3.69493,1796.4,1796.3,40.8]
[1743406011394,2.60923,1796.4,1796.3,40.8]
[1743406011596,1.4957,1796.4,1796.3,43.3239]
[1743406012196,0.00835003,1796.5,1796.4,1.11353]
[1743406012393,0.00835003,1796.5,1796.4,2.52383]
[1743406012597,4.32109,1796.8,1796.4,14.90033]
[1743406012893,4.32109,1796.8,1796.7,40.8]
[1743406013098,1.11329,1796.8,1796.7,40.8]
[1743406013293,3.19059,1796.8,1796.7,40.8]
[1743406015400,1.11329,1796.8,1796.7,40.8]
[1743406015800,1.11329,1796.8,1796.7,41.91335]
[1743406016093,1.11329,1796.8,1796.7,42.2102]
[1743406016294,1.11329,1796.8,1796.7,40.8]
[1743406016698,2.18269,1796.8,1796.7,40.8]
[1743406021193,0.00835003,1796.9,1796.7,40.8]
[1743406021398,1.12157003,1796.9,1796.8,1.3816]
[1743406021606,0.00835003,1796.9,1796.8,1.3816]
[1743406021908,0.00835003,1796.9,1796.8,43.29489]
[1743406022307,9.87378,1797.7,1796.9,2.78302]
[1743406022509,1.11302,1797.3,1797.1,1.11306]
[1743406022809,4.88748,1797.6,1797.2,2.52234]
[1743406023012,1.11298,1797.3,1797.2,1.4093]
[1743406023399,1.11298,1797.3,1797.2,42.2093]
[1743406023709,1.11298,1797.3,1797.2,43.32234]
[1743406024102,1.11296,1797.4,1797.2,43.32234]
[1743406024301,4.88748,1797.6,1797.2,43.32234]
[1743406024608,1.11298,1797.3,1797.2,43.32234]
[1743406025403,1.11296,1797.4,1797.2,45.4171]
[1743406025707,4.88748,1797.6,1797.2,45.4171]
[1743406025708,1.11298,1797.3,1797.2,45.4171]
[1743406027006,1.11298,1797.3,1797.2,40.8]
[1743406027905,1.11298,1797.3,1797.2,41.91304]
[1743406028209,1.11298,1797.3,1797.2,40.8]
[1743406029603,2.57078,1797.3,1797.2,40.8]
[1743406030905,2.57078,1797.3,1797.2,42.1722]
[1743406031203,1.4578,1797.3,1797.2,43.28524]
[1743406032010,2.57078,1797.3,1797.2,43.28524]
[1743406032205,2.57078,1797.3,1797.2,42.1722]
[1743406032912,2.57078,1797.3,1797.2,40.8]
[1743406034007,25.16290555,1797.9,1797.3,2.78231]
[1743406034205,1.3769,1797.6,1797.5,1.1128]
[1743406034606,2.48969,1797.6,1797.5,41.9128]
[1743406034803,1.3769,1797.6,1797.5,41.9128]
[1743406035004,2.48969,1797.6,1797.5,41.9128]
[1743406035710,1.3769,1797.6,1797.5,41.9128]
[1743406036305,2.48969,1797.6,1797.5,41.9128]
[1743406038611,2.48969,1797.6,1797.5,40.8]
[1743406039512,1.11274,1797.7,1797.6,1.11279]
[1743406039710,2.4995,1797.8,1797.7,1.11273]
[1743406040205,1.4211,1797.8,1797.7,41.91273]
[1743406040409,1.11267,1797.9,1797.8,1.11264]
[1743406040610,1.11267,1797.9,1797.8,2.52144]
[1743406040810,1.11267,1797.9,1797.8,3.884]
[1743406041112,2.12767,1797.9,1797.8,40.8]
[1743406041409,3.19247,1797.9,1797.8,40.8]
[1743406042006,3.19247,1797.9,1797.8,41.91267]
[1743406042412,3.19247,1797.9,1797.8,40.8]
[1743406042714,3.19247,1797.9,1797.8,41.91267]
[1743406043608,2.0798,1797.9,1797.8,41.91267]
[1743406043805,1.4211,1798.0,1797.9,1.1126]
[1743406044009,1.4211,1798.0,1797.9,6.4037]
[1743406044603,1.4211,1798.0,1797.9,47.2037]
[1743406045614,1.4211,1798.0,1797.9,45.7956]
[1743406045813,2.53364,1798.0,1797.9,45.7956]
[1743406046517,2.53364,1798.0,1797.9,40.8]
[1743406047715,2.53364,1798.0,1797.9,41.9126]
[1743406047915,2.53364,1798.0,1797.9,40.8]
[1743406048112,1.4211,1798.0,1797.9,41.9126]
[1743406048520,2.53364,1798.0,1797.9,40.8]
[1743406049119,2.53364,1798.0,1797.9,41.9126]
[1743406049421,2.53364,1798.0,1797.9,40.8]
[1743406050514,2.78152,1797.9,1797.2,1.113]
[1743406050715,1.11302,1797.3,1797.1,0.00835003]
[1743406050917,6.88004,1797.2,1797.1,0.00835003]
[1743406051120,7.91704,1797.2,1797.1,0.00835003]
[1743406051618,7.91704,1797.2,1797.1,40.80835003]
[1743406052018,8.35520343,1797.2,1797.1,40.80835003]
[1743406052419,12.23720343,1797.2,1797.1,40.80835003]
[1743406054822,11.79904,1797.2,1797.1,40.80835003]
[1743406055818,7.91704,1797.2,1797.1,40.80835003]
[1743406057620,11.79904,1797.2,1797.1,40.80835003]
[1743406058729,1.11335,1796.7,1796.6,4.5874]
[1743406059227,1.11335,1796.7,1796.6,3.2078]
[1743406059628,2.57255,1796.7,1796.6,3.2078]
[1743406059824,2.57255,1796.7,1796.6,44.0078]
[1743406062122,1.4592,1796.7,1796.6,45.12121]
[1743406062421,2.57255,1796.7,1796.6,44.0078]
[1743406063427,2.57255,1796.7,1796.6,45.4156]
[1743406064125,2.57255,1796.7,1796.6,40.8]
[1743406065527,2.57255,1796.7,1796.6,42.209]
[1743406065934,1.11335,1796.7,1796.6,42.209]
[1743406066230,1.11335,1796.7,1796.6,43.32241]
[1743406066529,1.11335,1796.7,1796.6,42.209]
[1743406066730,1.11335,1796.7,1796.6,43.32241]
[1743406066927,3.66486003,1796.8,1796.7,1.11335]
[1743406067130,1.12164003,1796.8,1796.7,2.52235]
[1743406067331,1.12164003,1796.8,1796.7,2.66025]
[1743406067531,1.12164003,1796.8,1796.7,42.3469]
[1743406068029,1.12164003,1796.8,1796.7,42.209]
[1743406068328,1.12164003,1796.8,1796.7,40.8]
[1743406069032,1.12164003,1796.8,1796.7,42.209]
[1743406069931,0.00835003,1796.8,1796.7,43.32235]
[1743406070130,0.00835003,1796.8,1796.7,46.53015]
[1743406070333,1.12164003,1796.8,1796.7,46.53015]
[1743406070830,0.00835003,1796.8,1796.7,46.53015]
[1743406071333,1.12164003,1796.8,1796.7,46.53015]
[1743406071527,0.00835003,1796.8,1796.7,46.53015]
[1743406071939,1.12164003,1796.8,1796.7,46.53015]
[1743406072129,0.00835003,1796.8,1796.7,46.53015]
[1743406072524,1.12164003,1796.8,1796.7,46.53015]
[1743406073337,0.00835003,1796.8,1796.7,46.53015]
[1743406074335,4.32076,1797.4,1797.3,1.11298]
[1743406074633,3.2078,1797.4,1797.3,1.11298]
[1743406074834,1.4533,1797.6,1797.5,1.11285]
[1743406075025,19.17357555,1797.7,1797.6,1.11279]
[1743406075228,19.17357555,1797.7,1797.6,2.78179]
[1743406075626,19.17357555,1797.7,1797.6,43.58179]
[1743406075825,20.28630555,1797.7,1797.6,42.469]
[1743406076027,20.28630555,1797.7,1797.6,42.209]
[1743406076331,20.28630555,1797.7,1797.6,40.8]
[1743406076332,4.32053,1797.7,1797.6,40.8]